Cogmind - Beta 15 @@@ ROGUE MODE // 2025.09.14 @ 10:12:16 Player: beans Result: Destroyed by H-55 Commando with Gauss Rifle Performance ------------- Evolutions (3) 1500 Regions Visited (6) 1200 Robots Destroyed (91) 455 Value Destroyed (2711) 2711 Prototype IDs (8) 160 Alien Tech Used (0) 0 Bonus (223) 223 TOTAL SCORE: 6249 Bonus ------- High Alert Combat Kills 223 Cogmind --------- Core Integrity 0/700 Matter 40/300 Energy 290/290 System Corruption 4% Temperature Cool (0) Movement Core (200) Ox3 Location -7/Factory Parts ------- > --- POWER (1) -------- Improved Deuterium Engine > --- PROPULSION (2) --- (None) > --- UTILITY (6) ------ Hacking Suite System Shield Dynamic Insulation System > --- WEAPON (4) ------- (None) > --- INVENTORY (5) ---- Improved Cooling System Improved Targeting Computer Rocket Launcher Peak State ------------ > --- POWER ------------ Improved Deuterium Engine > --- PROPULSION ------- Light Treads > --- UTILITY ---------- Hacking Suite Hacking Suite System Shield Dynamic Insulation System System Restoration Module > --- WEAPON ----------- Heavy Ion Cannon Flak Gun > --- INVENTORY -------- Rocket Launcher [Rating: 30] Favorites ----------- Power Light Nuclear Core Engine Improved Deuterium Engine Power Core Light Nuclear Core Propulsion Light Treads Treads Light Treads Flight Unit Improved Flight Unit Utility Hacking Suite Device Heat Sink Storage Compact Matter Pod Hackware Hacking Suite Protection Medium Armor Plating Weapon Shotgun Energy Gun Advanced Beam Rifle Energy Cannon Heavy Ion Cannon Ballistic Gun Shotgun Ballistic Cannon Flak Cannon Launcher Grenade Launcher Build | -11 -10 -9 -8 -7 -7 -7 ------- Run | Yrd Mat Mat Mat Fac Was Fac Slots Evolved 6 | . . 2 2 2 . . Power . | . . . . . . . Propulsion . | . . . . . . . Utility 4 | . . . 2 2 . . Weapon 2 | . . 2 . . . . Parts Attached 52 | 2 4 6 25 1 1 13 Power 5 | . . 2 2 . . 1 Engine 2 | . . 1 . . . 1 Core 3 | . . 1 2 . . . Reactor . | . . . . . . . Propulsion 9 | 2 . 1 5 . . 1 Treads 7 | 2 . . 4 . . 1 Leg . | . . . . . . . Wheel . | . . . . . . . Hover . | . . . . . . . Flight 2 | . . 1 1 . . . Utility 15 | . 1 1 4 1 . 8 Device 8 | . . 1 3 . . 4 Storage 1 | . . . 1 . . . Processor . | . . . . . . . Hackware 4 | . . . . 1 . 3 Protection 2 | . 1 . . . . 1 Artifact . | . . . . . . . Weapon 23 | . 3 2 14 . 1 3 Energy Gun 5 | . . . 4 . 1 . Energy Cannon 1 | . . . . . . 1 Ballistic Gun 11 | . 2 2 6 . . 1 Ballistic Cannon 2 | . . . 2 . . . Launcher 4 | . 1 . 2 . . 1 Special Weapon . | . . . . . . . Impact Weapon . | . . . . . . . Slashing Weapon . | . . . . . . . Piercing Weapon . | . . . . . . . Special Melee Weapon . | . . . . . . . Unidentified Prototypes 4 | . . 2 1 . . 1 Corrupted Parts 1 | . . . . . . 1 System Corruption 1 | . . . . . . 1 Parts Lost 35 | . . 1 21 2 1 10 Power 4 | . . . 2 1 . 1 Propulsion 5 | . . . 2 . . 3 Utility 9 | . . 1 4 . 1 3 Weapon 17 | . . . 13 1 . 3 Highest Loss Streak 9 | . . 1 9 2 1 3 To Critical Strikes . | . . . . . . . Average Backups 2 | . 1 2 4 2 4 1 Power . | . . . . . . . Propulsion . | . . . 1 . 1 . Utility . | . . . . . . . Weapon 1 | . 1 2 2 1 2 1 Tool/Special . | . . . . . . . Unused Backups 4 | . . . 2 . . 2 Power . | . . . . . . . Propulsion 1 | . . . 1 . . . Utility 2 | . . . . . . 2 Weapon 1 | . . . 1 . . . Tool/Special . | . . . . . . . Average Slot Usage (%) 60 | . 44 88 59 56 24 50 Engine 2 | . . 1 1 . . 4 Core 2 | . . 3 4 4 . . Treads 13 | . 28 22 13 11 5 7 Device 7 | . . 8 9 7 3 8 Hackware 4 | . . . . 1 3 14 Protection 2 | . 2 9 . . . . Energy Gun 1 | . . . 2 7 3 . Energy Cannon 1 | . . . . . . 4 Ballistic Gun 17 | . 4 43 21 7 3 4 Ballistic Cannon 2 | . . . 1 11 3 2 Peak Build Rating 30 | 2 8 16 26 27 24 30 Average Rating 18 | 1 3 13 19 24 11 22 On Entrance 10 | . 2 8 14 26 24 1 Naked Turns 93 | . . . 8 . 85 . Heaviest Build 26 | . 13 25 26 25 15 25 Greatest Support 56 | 40 40 40 56 56 56 56 Greatest Overweight (x) 7 | . . . 2 . 2 7 Average Overweight (x) . | . . . . . . . Largest Inventory Capacity 5 | 5 5 5 5 5 5 5 Average Capacity 5 | 5 5 5 5 5 5 5 Most Carried 5 | 2 4 5 5 4 5 5 Average Carried 2 | . 1 2 4 2 4 1 Final Capacity 5 | 5 5 5 5 5 5 5 Final Carried 5 | . 4 5 3 3 5 3 Class Distribution -------------------- 30% | Tank 27% | Mutant 18% | Hacker-Mutant 14% | Gunner 6% | Scavenger-Gunner Dominant Class ---------------- Mutant | -10/Materials Tank | -9/Materials Gunner | -8/Materials Tank | -7/Factory Mutant | -7/Waste Hacker-Mutant | -7/Factory Resources | -11 -10 -9 -8 -7 -7 -7 ----------- Run | Yrd Mat Mat Mat Fac Was Fac Matter Collected 2224 | 219 15 639 1107 62 . 182 Remotely . | . . . . . . . Salvage Created 2867 | . 15 857 1716 93 . 186 Parts 195 | . 1 53 123 5 . 13 Haulers Intercepted 4 | . . 1 2 1 . . Recyclers Shooed . | . . . . . . . Parts Field Recycled . | . . . . . . . Retrieved Matter . | . . . . . . . Parts Self-Destructed . | . . . . . . . Prevented . | . . . . . . . Kills | -11 -10 -9 -8 -7 -7 -7 ------- Run | Yrd Mat Mat Mat Fac Was Fac Combat Hostiles Destroyed 63 | . . 19 37 2 . 5 Guns 50 | . . 19 30 . . 1 Cannons 5 | . . . . 2 . 3 AOE 7 | . . . 7 . . . Classes Destroyed 14 | . 1 7 5 . . 1 Worker 6 | . . 1 5 . . . Builder 6 | . . . 5 . . 1 Tunneler 2 | . . 1 1 . . . Hauler 4 | . . 1 2 1 . . Recycler 3 | . . 1 2 . . . Operator 2 | . . . 1 . . 1 Watcher 5 | . 1 2 2 . . . Swarmer 13 | . . 4 9 . . . Grunt 28 | . . 9 15 2 . 2 Sentry 16 | . . 6 9 . . 1 Specialist 2 | . . . 2 . . . Hunter 1 | . . . 1 . . . Programmer 2 | . . . . . . 2 Heavy 1 | . . . 1 . . . Best Kill Streak 16 | . 1 8 16 2 . 3 Combat Bots Only 10 | . . 8 10 2 . 2 Max Kills in Single Turn 2 | . 1 2 2 1 . 1 Gunslinging 1 | . . 1 1 . . . Exploded 2 | . . . 2 . . . Melee . | . . . . . . . Uniques/NPCs Destroyed . | . . . . . . . Combat | -11 -10 -9 -8 -7 -7 -7 -------- Run | Yrd Mat Mat Mat Fac Was Fac Hostile Shots Fired 453 | . . 69 202 6 5 171 Missed 143 | . . 19 71 2 . 51 Hits 310 | . . 50 131 4 5 120 Melee 5 | . . . . . 5 . Projectile 305 | . . 50 131 4 . 120 AOE 1 | . . . 1 . . . Critical Strikes 14 | . . 2 4 1 3 4 Damage Taken 5077 | . 10 618 2387 118 237 1707 Core 1227 | . . 26 489 . 237 475 Absorbed by Shields 30 | . . . . 30 . . Regen/Repaired (Parts) 328 | . . . . 328 . . Core Remaining (%) 76 | 100 100 93 11 . . . Volleys Fired 188 | . 4 34 93 6 . 51 Largest 4 | . 2 4 4 4 . 2 Hottest 183 | . 46 92 183 158 . 93 Shots Fired 475 | . 5 136 265 18 . 51 Gun 394 | . 2 136 239 9 . 8 Cannon 62 | . . . 10 9 . 43 Launcher 19 | . 3 . 16 . . . Special . | . . . . . . . Kinetic 396 | . 2 136 214 15 . 29 Thermal 60 | . . . 35 3 . 22 Explosive 19 | . 3 . 16 . . . Electromagnetic . | . . . . . . . Robot Hit Streak 12 | . . 10 12 4 . 6 Robot Miss Streak 7 | . . 7 5 3 . 5 Penetration Max . | . . . . . . . Secondary Targets 10 | . . 4 6 . . . Max Gunslinging Chain 2 | . . 2 1 . . . Shots Hit Robots 292 | . . 79 163 11 . 39 Core Hits 206 | . 2 47 110 10 . 37 Critical Kills 2 | . . 1 1 . . . Critical Parts Destroyed 1 | . . . 1 . . . Critical Strikes 4 | . . 1 3 . . . Burn 1 | . . . 1 . . . Destroy 3 | . . 1 2 . . . Melee Attacks . | . . . . . . . Impact . | . . . . . . . Slashing . | . . . . . . . Piercing . | . . . . . . . Sneak Attacks . | . . . . . . . Combat Hostiles . | . . . . . . . Follow-up Attacks . | . . . . . . . Damage Inflicted 5924 | . 31 1161 3573 224 . 935 Guns 3875 | . . 1161 2506 86 . 122 Cannons 1006 | . . . 164 138 . 704 Explosions 1024 | . 31 . 903 . . 90 Melee . | . . . . . . . Ramming 19 | . . . . . . 19 Kinetic 4183 | . . 1161 2330 204 . 488 Thermal 698 | . . . 340 20 . 338 Explosive 934 | . 31 . 903 . . . Electromagnetic 90 | . . . . . . 90 Impact . | . . . . . . . Slashing . | . . . . . . . Piercing . | . . . . . . . Highest Corruption 14 | . . . . . 13 14 Average Corruption 9 | . . . . . 8 9 Corruption Purged 15 | . . . . . . 15 Corruption Blocked . | . . . . . . . Effects 35 | . . . . . 8 27 Message Errors 7 | . . . . . 1 6 Matter Fused 5 | . . . . . 1 4 Heat Flow Errors 6 | . . . . . 1 5 Energy Discharges 1 | . . . . . . 1 Parts Rejected 1 | . . . . . . 1 Data Loss (minor) 7 | . . . . . 3 4 Data Loss (major) 1 | . . . . . . 1 Misfires 1 | . . . . . . 1 Alerts 2 | . . . . . 1 1 Misdirections 2 | . . . . . 1 1 Weapon Failures 2 | . . . . . . 2 Overload Shots . | . . . . . . . Overflow Damage 40 | . . . 21 . . 19 Projectiles 19 | . . . . . . 19 Explosions 21 | . . . 21 . . . Melee . | . . . . . . . Knockbacks 17 | . . . . 3 . 14 Impact . | . . . . . . . Kinetic 17 | . . . . 3 . 14 Secondary . | . . . . . . . Self-Inflicted Damage 144 | . 10 . 77 . . 57 Shots 6 | . 1 . 3 . . 2 Rammed 14 | . . . . . . 14 Targets Rammed 14 | . . . . . . 14 Kicked . | . . . . . . . Crushed . | . . . . . . . Highest Temperature 372 | . . 45 372 149 152 259 Average Temperature 60 | . . 10 79 62 84 64 Received Heat Transfer 1715 | . . 318 684 44 . 669 Effects 1 | . . . 1 . . . Energy Bleed 1 | . . . 1 . . . Siege Activations . | . . . . . . . Martial Activations . | . . . . . . . Shielding Activations . | . . . . . . . Robots Disrupted . | . . . . . . . Combat Hostiles . | . . . . . . . Robots Corrupted . | . . . . . . . Combat Hostiles . | . . . . . . . Parts Fried 1 | . . . . . . 1 Impact Corruptions . | . . . . . . . Robots Melted 1 | . . . . . . 1 Combat Hostiles 1 | . . . . . . 1 Parts Melted . | . . . . . . . Heat Transferred 1184 | . . . 703 37 . 444 Parts Sabotaged . | . . . . . . . Parts Stolen . | . . . . . . . Parts Stripped . | . . . . . . . Power Chain Reactions . | . . . . . . . Alert | -11 -10 -9 -8 -7 -7 -7 ------- Run | Yrd Mat Mat Mat Fac Was Fac Maximum Alert Level 3 | . . 1 3 1 . . Low Security (%) 66 | 100 100 85 15 . 100 100 Level 1 16 | . . 14 16 100 . . Level 2 16 | . . . 65 . . . Level 3 . | . . . 2 . . . Level 4 . | . . . . . . . Level 5 . | . . . . . . . High Security . | . . . . . . . Max Security . | . . . . . . . Peak Influence 701 | . 14 252 701 312 75 57 Initial 312 | . . . 102 312 75 . Average 176 | . 2 102 501 256 33 10 Influence Increases 2025 | . 33 546 1164 64 . 218 Destroy 0b10 Robot/C 1260 | . . 380 740 40 . 100 Destroy 0b10 Robot/NC 140 | . 5 30 90 5 . 10 Destroy Leader 388 | . 2 116 218 12 . 40 Successful Hack 26 | . 9 5 . 7 . 5 Disable Machine 90 | . . . 30 . . 60 Destroy Structure 76 | . 17 . 56 . . 3 Partial Spotted 15 | . . . 15 . . . Lose Combat Pursuer 30 | . . 15 15 . . . Influence Decreases 2015 | . 33 304 718 536 216 208 Entered New Map 657 | . . . 140 376 141 . Time Decay 1063 | . 33 294 368 140 65 163 Lost Part 295 | . . 10 210 20 10 45 Squads Dispatched 16 | . . 2 11 1 . 2 Investigation 3 | . . 1 1 1 . . Extermination 1 | . . . . . . 1 Reinforcement 8 | . . 1 6 . . 1 Assault 2 | . . . 2 . . . Garrison 2 | . . . 2 . . . Intercept . | . . . . . . . Searches Triggered . | . . . . . . . Construction Impeded . | . . . . . . . Haulers Reinforced . | . . . . . . . Active Scanning Responses . | . . . . . . . Cargo Convoy Interrupts 1 | . . . . . . 1 Stealth | -11 -10 -9 -8 -7 -7 -7 --------- Run | Yrd Mat Mat Mat Fac Was Fac Distress Signals 5 | . . . 5 . . . Communications Jammed . | . . . . . . . Distress Signals . | . . . . . . . Times Spotted 91 | . . 24 46 3 7 11 Peak Tracking Total 6 | . . 4 6 2 6 3 Tactical Retreats 3 | . . 1 1 . 1 . Traps | -11 -10 -9 -8 -7 -7 -7 ------- Run | Yrd Mat Mat Mat Fac Was Fac Traps Triggered 2 | . . . 1 1 . . Indirectly . | . . . . . . . Trap Hack Attempts . | . . . . . . . Triggered . | . . . . . . . Disarmed . | . . . . . . . Reprogrammed . | . . . . . . . Reused . | . . . . . . . Traps Extracted . | . . . . . . . Installed . | . . . . . . . Triggered . | . . . . . . . Machines | -11 -10 -9 -8 -7 -7 -7 ---------- Run | Yrd Mat Mat Mat Fac Was Fac Machines Disabled 6 | . . . 2 . . 4 Max in Single Turn 3 | . . . 1 . . 3 Garrison Access 1 | . . . 1 . . . Machines Repaired . | . . . . . . . Machines Dismantled . | . . . . . . . Machines Sabotaged . | . . . . . . . Overloaded Fab Kills . | . . . . . . . Hacking | -11 -10 -9 -8 -7 -7 -7 --------- Run | Yrd Mat Mat Mat Fac Was Fac Machines Accessed 9 | . 2 2 1 2 . 2 Terminals 5 | . 2 2 . . . 1 Fabricators 1 | . . . . 1 . . Repair Stations 2 | . . . . 1 . 1 Recycling Units . | . . . . . . . Scanalyzers . | . . . . . . . Garrison Access 1 | . . . 1 . . . Total Hacks 25 | . 5 3 3 9 . 5 Successful 13 | . 2 2 1 7 . 1 Failed 12 | . 3 1 2 2 . 4 Catastrophic . | . . . . . . . Database Lockouts . | . . . . . . . Manual 6 | . 1 3 . . . 2 Terminals 10 | . 5 3 . . . 2 Fabricators 1 | . . . . 1 . . Repair Stations 11 | . . . . 8 . 3 Recycling Units . | . . . . . . . Scanalyzers . | . . . . . . . Garrison Access 3 | . . . 3 . . . Terminal Hacks 4 | . 2 2 . . . . Robot Analysis 1 | . 1 . . . . . Prototype ID Bank 2 | . 1 1 . . . . Emergency Access Points 1 | . . 1 . . . . Fabricator Hacks 1 | . . . . 1 . . Network Status 1 | . . . . 1 . . Repair Station Hacks 7 | . . . . 6 . 1 Scan Component 3 | . . . . 3 . . Repair 3 | . . . . 3 . . Refit 1 | . . . . . . 1 Recycling Unit Hacks . | . . . . . . . Scanalyzer . | . . . . . . . Garrison Access Hacks 1 | . . . 1 . . . Seal Access 1 | . . . 1 . . . Unauthorized Hacks . | . . . . . . . Terminals . | . . . . . . . Fabricators . | . . . . . . . Repair Stations . | . . . . . . . Recycling Units . | . . . . . . . Scanalyzers . | . . . . . . . Garrison Access . | . . . . . . . Data Cores Recovered . | . . . . . . . Used . | . . . . . . . Hacking Detections 5 | . 2 1 . 2 . . Full Trace Events 2 | . . 1 . 1 . . Feedback Events . | . . . . . . . Feedback Blocked . | . . . . . . . Robot Schematics Acquired . | . . . . . . . Robots Built . | . . . . . . . Authchips . | . . . . . . . Time . | . . . . . . . Total Robot Build Rating . | . . . . . . . Part Schematics Acquired . | . . . . . . . Parts Built . | . . . . . . . Authchips . | . . . . . . . Time . | . . . . . . . Total Part Build Rating . | . . . . . . . Parts Repaired 3 | . . . . 3 . . Time 120 | . . . . 120 . . Parts Recycled . | . . . . . . . Recycled Matter . | . . . . . . . Retrieved Matter . | . . . . . . . Retrieved Components . | . . . . . . . Parts Scanalyzed . | . . . . . . . Part Schematics Acquired . | . . . . . . . Parts Damaged . | . . . . . . . Bothacking | -11 -10 -9 -8 -7 -7 -7 ------------ Run | Yrd Mat Mat Mat Fac Was Fac Used RIF Installer . | . . . . . . . Robots Hacked . | . . . . . . . Non-combat . | . . . . . . . Combat . | . . . . . . . Robot Hacks Applied . | . . . . . . . Relay Couplers Released . | . . . . . . . Fabnet Peak Effective % . | . . . . . . . Robots Rewired . | . . . . . . . Allies Hacked . | . . . . . . . Hacks Repelled . | . . . . . . . Allies | -11 -10 -9 -8 -7 -7 -7 -------- Run | Yrd Mat Mat Mat Fac Was Fac Total Allies . | . . . . . . . Largest Group . | . . . . . . . Highest-Rated Group . | . . . . . . . Highest-Rated Ally . | . . . . . . . Total Orders . | . . . . . . . Ally Attacks . | . . . . . . . Total Damage . | . . . . . . . Kills . | . . . . . . . Allies Corrupted . | . . . . . . . Allies Melted . | . . . . . . . Intel | -11 -10 -9 -8 -7 -7 -7 ------- Run | Yrd Mat Mat Mat Fac Was Fac Active Infowar (turns) . | . . . . . . . Robot Analysis Total 1 | . 1 . . . . . Derelict Logs Recovered . | . . . . . . . Drone Launches . | . . . . . . . Drone Recoveries . | . . . . . . . Exploration | -11 -10 -9 -8 -7 -7 -7 ------------- Run | Yrd Mat Mat Mat Fac Was Fac Turns Passed 3396 | 38 181 770 853 299 169 1086 Spaces Moved 1601 | 28 101 397 354 94 199 428 Core 255 | 9 . . 13 . 158 75 Treads 1273 | 19 101 397 268 94 41 353 Legs . | . . . . . . . Wheels . | . . . . . . . Hover . | . . . . . . . Flight 73 | . . . 73 . . . Fastest Speed 40 | 50 160 160 40 160 50 100 Average Speed 154 | 124 160 160 135 160 75 202 Slowest Speed 400 | 160 160 160 180 160 160 400 Overloaded Moves . | . . . . . . . Propulsion Burnouts . | . . . . . . . Robots Hopped . | . . . . . . . Potential Cave-ins . | . . . . . . . Cave-ins Triggered . | . . . . . . . Exploration Rate (%) 33 | 3 20 55 44 4 98 9 Regions Visited 6 Branch Regions . Pre-discovered Areas . | . . . . . . . Known Exits Taken . | . . . . . . . Unknown Exits Taken 4 | 1 1 1 1 . . . Scrap Searched . | . . . . . . . Spaces Dug 7 | . 7 . . . . . Terrain Destroyed 87 | . 18 . 66 . . 3 Melee . | . . . . . . . Projectile 4 | . . . 1 . . 3 AOE 83 | . 18 . 65 . . . Terrain Rammed . | . . . . . . . Walls Destroyed . | . . . . . . . Machines Disabled . | . . . . . . . Actions | -11 -10 -9 -8 -7 -7 -7 --------- Run | Yrd Mat Mat Mat Fac Was Fac Total 2159 | 31 115 447 526 230 220 590 Wait 223 | . . 1 25 123 12 62 Move 1596 | 27 100 396 353 94 198 428 Hop . | . . . . . . . Pick Up 51 | 2 7 7 15 4 . 16 Fast Attach 10 | . . . 9 . 1 . Attach 46 | 2 3 5 16 2 . 18 Detach 5 | . . . 1 . 4 . Swap 11 | . 1 2 7 1 . . Drop 15 | . . 2 7 . 5 1 Fire 188 | . 4 34 93 6 . 51 Melee . | . . . . . . . Ram 4 | . . . . . . 4 Kick . | . . . . . . . Crush 10 | . . . . . . 10 Escape Stasis . | . . . . . . . Rewire . | . . . . . . . Trap . | . . . . . . . Miscellaneous . | . . . . . . . Route ------- -11/Scrapyard -10/Materials -9/Materials (discovered 3 exits: *Mat x2 / [*Min]) -8/Materials -7/Factory -7/Waste -7/Factory History --------- Turn | Location | Event 3 | -11/Scrapyard | Discovered new exit (range 16) 39 | -11/Scrapyard | Entered Materials 158 | -10/Materials | Discovered new exit (range 16) 220 | -10/Materials | Entered another Materials area 220 | -9/Materials | Evolved 2 slots: Weapon x2 519 | -9/Materials | Discovered new exit (range 4) 520 | -9/Materials | Build established: Tank 710 | -9/Materials | Discovered new exit (range 12) 911 | -9/Materials | Destroyed 8 combat bots 952 | -9/Materials | Discovered new exit (range 4) 990 | -9/Materials | Entered another Materials area 990 | -8/Materials | Evolved 2 slots: Utility x2 1173 | -8/Materials | Destroyed 7 combat bots 1178 | -8/Materials | Lost 3 parts (1p2w) 1227 | -8/Materials | Garrison activated, responded to threat 1343 | -8/Materials | Lost 4 parts (2u2w) 1345 | -8/Materials | Destroyed 10 combat bots 1402 | -8/Materials | Garrison activated, responded to threat 1610 | -8/Materials | Core integrity fell below 50% 1619 | -8/Materials | Core integrity fell below 20% 1620 | -8/Materials | Discovered new exit (range 14) 1646 | -8/Materials | Lost 9 parts (1p2n1u5w) 1790 | -8/Materials | First assault squad dispatched 1843 | -8/Materials | Entered Factory 1843 | -7/Factory | Evolved 2 slots: Utility x2 1952 | -7/Factory | Repaired Med. Treads 1992 | -7/Factory | Repaired Hpw. Shotgun 2031 | -7/Factory | Repaired Flak Cannon 2142 | -7/Factory | Sucked down chute 2142 | -7/Factory | Entered Waste 2157 | -7/Waste | EMP discharged 2168 | -7/Waste | Spotted C-40 Crusher 2203 | -7/Waste | Spotted C-40 Crusher 2225 | -7/Waste | Crushed by Compactor (1 part destroyed) 2244 | -7/Waste | Spotted C-40 Crusher 2257 | -7/Waste | EMP discharged 2257 | -7/Waste | System corruption reached 10% 2261 | -7/Waste | Spotted C-40 Crusher 2267 | -7/Waste | Spotted C-40 Crusher 2270 | -7/Waste | Spotted C-40 Crusher 2282 | -7/Waste | Discovered new exit (range 13) 2311 | -7/Waste | Entered Factory 2515 | -7/Factory | Build established: Mutant 2526 | -7/Factory | Core integrity fell below 50% 2648 | -7/Factory | Lost 3 parts (1p2n) 2668 | -7/Factory | Core integrity fell below 20% 3073 | -7/Factory | Build established: Hacker-Mutant 3336 | -7/Factory | Lost 3 parts (1n1u1w) 3396 | -7/Factory | Cargo convoy interrupted 3397 | -7/Factory | Destroyed by H-55 Commando with Gauss Rifle Last Messages --------------- System corrupted: Heat flow error (+183). K-01 Serf collects debris. Acquired 37 matter. K-01 Serf cleans the Pressure Siphon. Acquired Prototype Launcher. K-01 Serf cleans the Pressure Siphon. K-01 Serf collects debris. Identified Prc. Grenade Launcher. Faulty integration triggers system corruption (+3). K-01 Serf collects debris. Dropped Faulty Prc. Grenade Launcher. K-01 Serf collects debris. Slug penetrates Fabricator. Flak Gun destroyed. R-06 Scavenger collects Remote Datajack. Slug penetrates Wall. ALERT: Cargo convoy interrupted, initiating access lockdown. Slug penetrates Wall. Map ----- +----------------------------------------------------+ | ?????????????????????????????????????????????????? | | ?????????????????????????????????????????????????? | | ?????????????????????????????????????????????????? | | ?????????????????????????????????????????????????? | | ?????????????????????????????????????????????????? | | ?????????????????????????????????????????????????? | | ?????????????????????????????????????????????????? | | ??????????????????????????????????????? ??????? | | ??????????????????????????????????????? ????? | | ??????????????????????????????????????# ???? | | ??????????????????????????????????????# ????? | | ?????????????? ? ?????????????????????# ????? | | ???????????# ^ ???????????????????# #????? | | ???????????# ???????????????????# #????? | | ???????????# ???????????????????# #????? | | ???????????# #??????????????????# #????? | | ???????????# #??????????????????# #????? | | ???????????# #??????????????????# #????? | | ???????????# #??????????????????# #????? | | ?????# ##### #################### #????? | | ?????? #????? | | ???? ###### | | ????""" """ """ # | | ?"" """ """ ""F % ^ | | ?"" """ """ | | ??" """ """ @ " | | ??? ] ######### " | | ??" """ """ ############+#######????# ! " | | ??" """ """ #?????# #????# | | ??" """ """ ##????# #????# | | ?"" """ /] """ !! #????# **=#????##+## | | /]! =!! #????# *==#???? | | /]! |*[! #????# """" *==#?? | | ! #????# """" # | | #????# """" # | | #######+####### #????# """" # | | ???????????????# ###### """" ########## | | ""????????????????+ + """" #???????# | | ??????????????????########## #???????# | | ???????????????????????????# !#???????# | | ???????????????????????????##############???????# | | ????????????????????????????????????????????????# | | ????????????????????????????????????????????????# | | ?????????????????????##############?????????????# | | ?????????????????????# #?????????????# | | ?????????????????????# #?????????????# | | ?????????????????????# #?????????????# | | ?????????????????????# #???#######???# | | ?????????????????????# #???# #???# | | ?????????????????????# #???# #???## | +----------------------------------------------------+ Best States ------------- Heat Dissipation 45 Energy Generation 16 Energy Capacity 290 Matter Stores 450 Matter Capacity 450 Sight Range 16 Terrain Scan Density 10 EM Shielding 2 Armor Coverage 225 Evasion (%) 62 Recoil Reduction 2 Energy Filtering 30 Offensive Hacking 20 Defensive Hacking 10 Item Schematics ----------------- None Robot Schematics ------------------ None Fabricated ------------ Nothing Repaired ---------- Med. Treads | 3% | -7/Factory Hpw. Shotgun | 78% | -7/Factory Flak Cannon | 18% | -7/Factory Alien Tech Used ----------------- None Achievements -------------- None Challenges ------------ None Game ------ Seed OmegaInsulatedStorm Manual? 0 Play Time 00:29:42 Cumulative 138.0 hours Start 2025.09.14 @ 08:34:48 End 2025.09.14 @ 10:12:16 Sessions 1 Manual Loads 0 Difficulty Rogue Special Mode None Game No. 467 Rogue 467 Adventurer 0 Explorer 0 Win Type - Total 0 Types 0/0/0/0/0/0/0/0/0/0 Lore% 51 Gallery% 49 Achievement% 36 Wizard Run 0 Options --------- Layout 2 ASCII 0 Keyboard 0 Movement Mouse Keybinds 0 Fullscreen 2 Font 24/Smallcaps Map View 50x44 Zoom Use 0% Tactical HUD 0 Map Filters NONE Filters NONE Steam 1 RUN: 67cd25fe-05b0-4a1c-9d5a-34aead5181c8